[Event "ESTCC 65 2019"]
[Site "Mali Losinj"]
[Date "2019.09.18"]
[Round "1.4"]
[White "Strobel, Ferdinand"]
[Black "Pushkov, Nikolai"]
[Result "1-0"]
[ECO "A03"]
[WhiteElo "1956"]
[BlackElo "2261"]
[Annotator "NA"]
[PlyCount "105"]
[EventDate "2019.09.18"]
[EventType "team-tourn"]
[EventCountry "CRO"]
[SourceTitle "playchess.com"]
[Source "ChessBase"]
[SourceQuality "1"]
[WhiteTeam "Austria"]
[BlackTeam "Russia"]
[WhiteTeamCountry "AUT"]
[BlackTeamCountry "RUS"]
[TimeControl "40/5400+30:1800+30"]

1. f4 {[%emt 0:00:30]} d5 {[%emt 0:00:30]} 2. Nf3 {[%emt 0:00:30]} Nf6 {[%emt 0:00:30]} 3. e3 {[%emt 0:00:30]} c5 {[%emt 0:00:30]} 4. b3 {[%emt 0:00:30]} g6 {[%emt 0:00:30]} 5. Bb2 {[%emt 0:01:30]} Bg7 {[%emt 0:00:30]} 6. Be2 {[%emt 0:03:30]} Nc6 {[%emt 0:00:00]} 7. O-O {[%emt 0:00:30]} O-O {[%emt 0:00:00]} 8. Ne5 {[%emt 0:05:30]} Bd7 {[%emt 0:02:30]} 9. d3 {[%emt 0:03:30]} Rc8 {[%emt 0:02:30]} 10. Nd2 {[%emt 0:03:30]} Qc7 {[%emt 0:06:30]} 11. Nxc6 {[%emt 0:17:30]} Bxc6 {[%emt 0:01:30]} 12. Be5 {[%emt 0:05:30]} Qa5 {[%emt 0:04:30]} 13. a4 {[%emt 0:06:30]} Nd7 {[%emt 0:08:30]} 14. Bxg7 {[%emt 0:05:30]} Kxg7 {[%emt 0:00:00]} 15. Nf3 {[%emt 0:02:30]} Qc3 {[%emt 0:03:00]} 16. Qd2 {[%emt 0:03:30]} Qxd2 {[%emt 0:00:30]} 17. Nxd2 {[%emt 0:00:30]} e5 {[%emt 0:00:30]} 18. g3 {[%emt 0:05:30]} f5 {[%emt 0:09:30]} 19. Bf3 {[%emt 0:07:30]} Rfe8 {[%emt 0:04:30]} 20. Rfe1 {[%emt 0:09:51]} Rcd8 {[%emt 0:14:30]} 21. c3 {[%emt 0:11:08]} e4 {[%emt 0:02:30]} 22. dxe4 {[%emt 0:02:44]} dxe4 {[%emt 0:06:30]} 23. Be2 {[%emt 0:00:16]} Nb6 {[%emt 0:01:30]} 24. Nc4 {[%emt 0:00:35]} Nxc4 {[%emt 0:00:30]} 25. Bxc4 {[%emt 0:00:16]} Rd2 {[%emt 0:00:00]} 26. Rad1 {[%emt 0:00:38]} Red8 {[%emt 0:00:00]} 27. Rxd2 {[%emt 0:01:52]} Rxd2 {[%emt 0:00:00]} 28. Rc1 {[%emt 0:00:23]} a6 {[%emt 0:02:00]} 29. a5 {[%emt 0:00:26]} Kf6 {[%emt 0:02:30]} 30. h3 {[%emt 0:00:36]} h6 {[%emt 0:02:30]} 31. b4 {[%emt 0:01:22]} cxb4 {[%emt 0:02:30]} 32. cxb4 {[%emt 0:00:04]} Rb2 {[%emt 0:00:30]} 33. Bxa6 {[%emt 0:00:17]} Rxb4 {[%emt 0:00:30]} 34. Bf1 {[%emt 0:00:19]} Bd5 {[%emt 0:01:30]} 35. a6 {[%emt 0:00:38]} bxa6 {[%emt 0:00:30]} 36. Bxa6 {[%emt 0:00:08]} Rb3 {[%emt 0:03:30]} 37. Rd1 {[%emt 0:00:17]} Ke6 {[%emt 0:00:30]} 38. Bc8+ {[%emt 0:00:18]} Kd6 {[%emt 0:00:00]} 39. Ba6 {[%emt 0:01:14]} Kc5 {[%emt 0:00:00]} 40. Kf2 {[%emt 0:00:11]} Rb2+ {[%emt 0:00:30]} 41. Kf1 {[%emt 0:31:09]} Bb3 {[%emt 0:33:57]} 42. Rc1+ {[%emt 0:00:44]} Bc2 {[%emt 0:00:00]} 43. g4 {[%emt 0:00:00]} fxg4 {[%emt 0:00:00]} 44. hxg4 {[%emt 0:00:00]} Kd6 {[%emt 0:00:00]} 45. Be2 {[%emt 0:00:00]} Kd5 {[%emt 0:00:00]} 46. Ke1 {[%emt 0:00:00]} Bd3 {[%emt 0:00:00]} 47. Bd1 {[%emt 0:00:00]} Rh2 {[%emt 0:00:00]} 48. Ra1 {[%emt 0:00:00]} Kc5 {[%emt 0:00:00]} 49. Ra8 {[%emt 0:00:00]} Kb4 {[%emt 0:00:00]} 50. f5 {[%emt 0:00:33]} gxf5 {[%emt 0:00:00]} 51. gxf5 {[%emt 0:00:06]} Rh1+ {[%emt 0:00:00]} 52. Kd2 {[%emt 0:00:16]} Rh2+ {[%emt 0:00:00]} 53. Ke1 {[%emt 0:00:23]} 1-0

[Event "ESTCC 65 2019"]
[Site "Mali Losinj"]
[Date "2019.09.18"]
[Round "1.5"]
[White "Lofgren, Claes"]
[Black "Rantanen, Yrjo A."]
[Result "0-1"]
[ECO "A43"]
[WhiteElo "2059"]
[BlackElo "2309"]
[Annotator "NA"]
[PlyCount "128"]
[EventDate "2019.09.18"]
[EventType "team-tourn"]
[EventCountry "CRO"]
[SourceTitle "playchess.com"]
[Source "ChessBase"]
[SourceQuality "1"]
[WhiteTeam "Denmark"]
[BlackTeam "Finland"]
[WhiteTeamCountry "DEN"]
[BlackTeamCountry "FIN"]
[TimeControl "40/5400+30:1800+30"]

1. d4 {[%emt 0:03:30]} c5 {[%emt 0:00:30]} 2. d5 {[%emt 0:00:30]} d6 {[%emt 0:00:30]} 3. e4 {[%emt 0:01:30]} g6 {[%emt 0:00:30]} 4. Nf3 {[%emt 0:00:30]} Bg7 {[%emt 0:00:30]} 5. Be2 {[%emt 0:01:30]} Nf6 {[%emt 0:00:30]} 6. Nc3 {[%emt 0:01:30]} O-O {[%emt 0:00:30]} 7. O-O {[%emt 0:00:30]} Na6 {[%emt 0:00:30]} 8. Nd2 {[%emt 0:05:30]} Nc7 {[%emt 0:06:30]} 9. a4 {[%emt 0:03:30]} e6 {[%emt 0:04:30]} 10. Nc4 {[%emt 0:02:30]} Nxe4 {[%emt 0:16:30]} 11. Nxe4 {[%emt 0:00:30]} exd5 {[%emt 0:00:30]} 12. Nexd6 {[%emt 0:02:30]} dxc4 {[%emt 0:01:30]} 13. Bxc4 {[%emt 0:25:30]} Be6 {[%emt 0:04:30]} 14. Bf4 {[%emt 0:10:30]} Qf6 {[%emt 0:08:30]} 15. Bg3 {[%emt 0:05:30]} Rad8 {[%emt 0:06:30]} 16. Bxe6 {[%emt 0:08:30]} Nxe6 {[%emt 0:03:30]} 17. c3 {[%emt 0:04:30]} Nf4 {[%emt 0:08:30]} 18. Ne4 {[%emt 0:01:21]} Qc6 {[%emt 0:03:30]} 19. Qc2 {[%emt 0:02:43]} Nd3 {[%emt 0:01:30]} 20. Nd2 {[%emt 0:02:39]} c4 {[%emt 0:03:30]} 21. Nf3 {[%emt 0:01:47]} Rfe8 {[%emt 0:01:30]} 22. Ne1 {[%emt 0:01:30]} Nc5 {[%emt 0:02:30]} 23. Nf3 {[%emt 0:03:03]} Nb3 {[%emt 0:01:30]} 24. Rad1 {[%emt 0:00:40]} Bf6 {[%emt 0:06:13]} 25. Bf4 {[%emt 0:01:22]} Rxd1 {[%emt 0:01:56]} 26. Rxd1 {[%emt 0:00:08]} Qxa4 {[%emt 0:00:29]} 27. Be3 {[%emt 0:01:24]} Qc6 {[%emt 0:01:09]} 28. h3 {[%emt 0:00:59]} a6 {[%emt 0:00:30]} 29. Nd2 {[%emt 0:02:03]} Nxd2 {[%emt 0:04:45]} 30. Rxd2 {[%emt 0:00:21]} Rd8 {[%emt 0:01:00]} 31. Rxd8+ {[%emt 0:00:38]} Bxd8 {[%emt 0:00:37]} 32. Qd2 {[%emt 0:00:29]} Be7 {[%emt 0:01:20]} 33. Bd4 {[%emt 0:01:06]} Bf6 {[%emt 0:02:32]} 34. Bxf6 {[%emt 0:02:19]} Qxf6 {[%emt 0:00:10]} 35. Qd7 {[%emt 0:00:44]} b5 {[%emt 0:00:12]} 36. g3 {[%emt 0:01:16]} Kg7 {[%emt 0:01:13]} 37. Qd5 {[%emt 0:00:41]} h5 {[%emt 0:00:32]} 38. h4 {[%emt 0:00:14]} Qf5 {[%emt 0:01:42]} 39. Qd4+ {[%emt 0:00:36]} Kh7 {[%emt 0:01:07]} 40. Qa7 {[%emt 0:01:11]} Qe6 {[%emt 0:00:00]} 41. Qc5 {[%emt 0:04:46]} Qe1+ {[%emt 0:04:33]} 42. Kg2 {[%emt 0:00:30]} Qe4+ {[%emt 0:00:30]} 43. Kh2 {[%emt 0:05:30]} Qe2 {[%emt 0:03:30]} 44. Qa7 {[%emt 0:01:30]} Kg8 {[%emt 0:00:30]} 45. Qd4 {[%emt 0:04:17]} a5 {[%emt 0:07:30]} 46. Kg2 {[%emt 0:03:53]} Qe8 {[%emt 0:05:42]} 47. Qd5 {[%emt 0:02:14]} Qb8 {[%emt 0:00:56]} 48. Kg1 {[%emt 0:00:39]} Qb6 {[%emt 0:00:37]} 49. Qa8+ {[%emt 0:01:29]} Kg7 {[%emt 0:02:56]} 50. Qd5 {[%emt 0:00:21]} Qa6 {[%emt 0:00:29]} 51. Qc5 {[%emt 0:05:36]} Qb7 {[%emt 0:00:28]} 52. Qd4+ {[%emt 0:00:37]} Kh7 {[%emt 0:00:49]} 53. Qc5 {[%emt 0:00:30]} Kg8 {[%emt 0:02:36]} 54. Qd4 {[%emt 0:02:01]} Qe7 {[%emt 0:04:40]} 55. Qb6 {[%emt 0:02:40]} Qe1+ {[%emt 0:02:08]} 56. Kg2 {[%emt 0:00:36]} Qe4+ {[%emt 0:00:12]} 57. Kh2 {[%emt 0:00:49]} Qf5 {[%emt 0:00:55]} 58. Kg2 {[%emt 0:00:02]} Qd5+ {[%emt 0:01:32]} 59. Kh2 {[%emt 0:00:03]} Qd2 {[%emt 0:00:30]} 60. Qb8+ {[%emt 0:01:37]} Kh7 {[%emt 0:00:28]} 61. Qxb5 {[%emt 0:01:52]} Qxf2+ {[%emt 0:00:43]} 62. Kh1 {[%emt 0:00:19]} Qxg3 {[%emt 0:01:00]} 63. Qxc4 {[%emt 0:00:05]} Qh3+ {[%emt 0:01:15]} 64. Kg1 {[%emt 0:00:01]} Qg4+ {[%emt 0:00:00]} 0-1

[Event "ESTCC 65 2019"]
[Site "Mali Losinj"]
[Date "2019.09.18"]
[Round "1.6"]
[White "Westerinen, Heikki M.J."]
[Black "Nielsen, Jorgen Lovgren"]
[Result "1/2-1/2"]
[ECO "C67"]
[WhiteElo "2296"]
[BlackElo "2052"]
[Annotator "NA"]
[PlyCount "96"]
[EventDate "2019.09.18"]
[EventType "team-tourn"]
[EventCountry "CRO"]
[SourceTitle "playchess.com"]
[Source "ChessBase"]
[SourceQuality "1"]
[WhiteTeam "Finland"]
[BlackTeam "Denmark"]
[WhiteTeamCountry "FIN"]
[BlackTeamCountry "DEN"]
[TimeControl "40/5400+30:1800+30"]

1. e4 {[%emt 0:00:30]} e5 {[%emt 0:00:30]} 2. Nf3 {[%emt 0:00:30]} Nc6 {[%emt 0:00:30]} 3. Bb5 {[%emt 0:00:30]} Nf6 {[%emt 0:00:30]} 4. O-O {[%emt 0:01:30]} Nxe4 {[%emt 0:00:30]} 5. Re1 {[%emt 0:03:30]} Nd6 {[%emt 0:00:30]} 6. Nxe5 {[%emt 0:00:30]} Nxe5 {[%emt 0:01:30]} 7. Rxe5+ {[%emt 0:00:30]} Be7 {[%emt 0:00:00]} 8. Bf1 {[%emt 0:05:30]} O-O {[%emt 0:01:00]} 9. d4 {[%emt 0:00:30]} Bf6 {[%emt 0:00:30]} 10. Re1 {[%emt 0:01:30]} Nf5 {[%emt 0:00:30]} 11. c3 {[%emt 0:00:30]} d5 {[%emt 0:01:30]} 12. Bf4 {[%emt 0:02:30]} c6 {[%emt 0:03:30]} 13. Nd2 {[%emt 0:01:30]} Nh4 {[%emt 0:01:30]} 14. h3 {[%emt 0:11:30]} Bf5 {[%emt 0:02:30]} 15. Nf3 {[%emt 0:01:30]} Nxf3+ {[%emt 0:01:30]} 16. Qxf3 {[%emt 0:00:30]} Qd7 {[%emt 0:01:30]} 17. Be5 {[%emt 0:02:30]} Bxe5 {[%emt 0:09:30]} 18. Rxe5 {[%emt 0:10:30]} Be4 {[%emt 0:00:30]} 19. Qg4 {[%emt 0:00:30]} Rad8 {[%emt 0:10:30]} 20. Rg5 {[%emt 0:03:30]} Qxg4 {[%emt 0:09:30]} 21. Rxg4 {[%emt 0:02:30]} Rfe8 {[%emt 0:10:30]} 22. Rg3 {[%emt 0:03:30]} Re7 {[%emt 0:05:30]} 23. Re3 {[%emt 0:02:30]} Rde8 {[%emt 0:00:30]} 24. f3 {[%emt 0:03:30]} Bg6 {[%emt 0:01:30]} 25. Rxe7 {[%emt 0:00:30]} Rxe7 {[%emt 0:00:30]} 26. Kf2 {[%emt 0:01:30]} Kf8 {[%emt 0:01:30]} 27. h4 {[%emt 0:00:30]} f6 {[%emt 0:02:30]} 28. g3 {[%emt 0:03:30]} Ke8 {[%emt 0:00:30]} 29. Bh3 {[%emt 0:02:30]} Kd8 {[%emt 0:02:30]} 30. Re1 {[%emt 0:03:30]} Rxe1 {[%emt 0:00:30]} 31. Kxe1 {[%emt 0:00:00]} Kc7 {[%emt 0:00:30]} 32. Kd2 {[%emt 0:00:00]} Kd6 {[%emt 0:00:30]} 33. Ke3 {[%emt 0:00:30]} Bf7 {[%emt 0:02:30]} 34. Bf5 {[%emt 0:02:30]} g6 {[%emt 0:00:30]} 35. Bd3 {[%emt 0:00:30]} Ke7 {[%emt 0:00:30]} 36. h5 {[%emt 0:02:30]} Kf8 {[%emt 0:00:30]} 37. h6 {[%emt 0:02:30]} Ke7 {[%emt 0:00:30]} 38. g4 {[%emt 0:00:30]} Kd6 {[%emt 0:01:30]} 39. b4 {[%emt 0:06:30]} b6 {[%emt 0:08:30]} 40. Kf4 {[%emt 0:02:35]} b5 {[%emt 0:08:42]} 41. Bc2 {[%emt 0:34:37]} Ke6 {[%emt 0:30:57]} 42. a4 {[%emt 0:00:23]} a6 {[%emt 0:00:16]} 43. a5 {[%emt 0:00:34]} Be8 {[%emt 0:00:31]} 44. Kg3 {[%emt 0:01:03]} Kf7 {[%emt 0:02:39]} 45. Bd3 {[%emt 0:01:29]} Ke6 {[%emt 0:01:26]} 46. f4 {[%emt 0:00:25]} Kd6 {[%emt 0:00:50]} 47. Bf1 {[%emt 0:01:19]} Bf7 {[%emt 0:00:41]} 48. Bh3 {[%emt 0:01:21]} Bg8 {[%emt 0:01:09]} 1/2-1/2

[Event "ESTCC 65 2019"]
[Site "Mali Losinj"]
[Date "2019.09.18"]
[Round "1.7"]
[White "Nielsen, Preben Lovgren"]
[Black "Kivimaki, Jaakko"]
[Result "0-1"]
[ECO "C60"]
[WhiteElo "2007"]
[BlackElo "2195"]
[Annotator "NA"]
[PlyCount "120"]
[EventDate "2019.09.18"]
[EventType "team-tourn"]
[EventCountry "CRO"]
[SourceTitle "playchess.com"]
[Source "ChessBase"]
[SourceQuality "1"]
[WhiteTeam "Denmark"]
[BlackTeam "Finland"]
[WhiteTeamCountry "DEN"]
[BlackTeamCountry "FIN"]
[TimeControl "40/5400+30:1800+30"]

1. e4 {[%emt 0:00:30]} e5 {[%emt 0:00:30]} 2. Nf3 {[%emt 0:00:00]} Nc6 {[%emt 0:00:00]} 3. Bb5 {[%emt 0:00:00]} Nge7 {[%emt 0:01:00]} 4. d4 {[%emt 0:00:30]} exd4 {[%emt 0:01:30]} 5. Nxd4 {[%emt 0:00:30]} Nxd4 {[%emt 0:02:30]} 6. Qxd4 {[%emt 0:00:30]} Nc6 {[%emt 0:00:30]} 7. Qd5 {[%emt 0:00:30]} Bb4+ {[%emt 0:02:30]} 8. c3 {[%emt 0:01:30]} Be7 {[%emt 0:00:30]} 9. O-O {[%emt 0:01:30]} O-O {[%emt 0:00:30]} 10. f4 {[%emt 0:03:30]} a6 {[%emt 0:07:30]} 11. Ba4 {[%emt 0:05:30]} d6 {[%emt 0:02:30]} 12. f5 {[%emt 0:03:30]} Ne5 {[%emt 0:05:30]} 13. Bf4 {[%emt 0:02:30]} Bf6 {[%emt 0:07:30]} 14. Bc2 {[%emt 0:07:30]} Bd7 {[%emt 0:08:30]} 15. Qd1 {[%emt 0:07:30]} Re8 {[%emt 0:06:30]} 16. Nd2 {[%emt 0:02:30]} Bb5 {[%emt 0:01:30]} 17. Bxe5 {[%emt 0:04:30]} Rxe5 {[%emt 0:04:30]} 18. c4 {[%emt 0:04:30]} Bc6 {[%emt 0:01:30]} 19. Rb1 {[%emt 0:01:30]} b5 {[%emt 0:08:30]} 20. Re1 {[%emt 0:02:30]} Qd7 {[%emt 0:06:30]} 21. Nf3 {[%emt 0:12:30]} Re7 {[%emt 0:01:30]} 22. cxb5 {[%emt 0:00:30]} axb5 {[%emt 0:00:30]} 23. a3 {[%emt 0:01:30]} Rae8 {[%emt 0:01:30]} 24. e5 {[%emt 0:14:30]} Bxe5 {[%emt 0:03:30]} 25. Nxe5 {[%emt 0:01:30]} Rxe5 {[%emt 0:00:00]} 26. Rxe5 {[%emt 0:01:30]} Rxe5 {[%emt 0:00:00]} 27. Qd4 {[%emt 0:00:30]} Qe7 {[%emt 0:01:30]} 28. Bd3 {[%emt 0:00:58]} Be4 {[%emt 0:03:30]} 29. Rf1 {[%emt 0:01:27]} c5 {[%emt 0:07:09]} 30. Qc3 {[%emt 0:01:20]} Bxd3 {[%emt 0:02:45]} 31. Qxd3 {[%emt 0:01:50]} c4 {[%emt 0:00:12]} 32. Qf3 {[%emt 0:01:52]} Re1 {[%emt 0:03:28]} 33. f6 {[%emt 0:02:13]} Qe3+ {[%emt 0:00:44]} 34. Qxe3 {[%emt 0:00:33]} Rxe3 {[%emt 0:00:06]} 35. Rd1 {[%emt 0:01:50]} gxf6 {[%emt 0:00:42]} 36. Rd5 {[%emt 0:00:29]} Rb3 {[%emt 0:00:24]} 37. Rd2 {[%emt 0:00:37]} Kf8 {[%emt 0:00:32]} 38. Kf2 {[%emt 0:00:17]} Ke7 {[%emt 0:00:15]} 39. Ke2 {[%emt 0:00:16]} Ke6 {[%emt 0:00:13]} 40. Kd1 {[%emt 0:00:23]} d5 {[%emt 0:01:07]} 41. Re2+ {[%emt 0:30:34]} Kd6 {[%emt 0:30:32]} 42. Kc2 {[%emt 0:00:22]} d4 {[%emt 0:00:23]} 43. Re4 {[%emt 0:01:44]} Kd5 {[%emt 0:00:27]} 44. Rh4 {[%emt 0:00:21]} Re3 {[%emt 0:01:32]} 45. Rh5+ {[%emt 0:03:28]} Re5 {[%emt 0:00:26]} 46. Rxh7 {[%emt 0:00:26]} Re2+ {[%emt 0:00:08]} 47. Kc1 {[%emt 0:00:15]} Ke4 {[%emt 0:00:29]} 48. Rh4+ {[%emt 0:01:13]} Ke5 {[%emt 0:01:17]} 49. Rh5+ {[%emt 0:00:26]} f5 {[%emt 0:02:32]} 50. g4 {[%emt 0:03:22]} Rf2 {[%emt 0:00:20]} 51. gxf5 {[%emt 0:04:01]} Rxf5 {[%emt 0:02:37]} 52. Rh8 {[%emt 0:00:59]} Rf1+ {[%emt 0:00:12]} 53. Kd2 {[%emt 0:00:23]} Rf2+ {[%emt 0:00:08]} 54. Kc1 {[%emt 0:00:12]} Ke4 {[%emt 0:00:00]} 55. Rh4+ {[%emt 0:00:00]} Ke3 {[%emt 0:00:00]} 56. Rh3+ {[%emt 0:00:00]} Ke2 {[%emt 0:00:00]} 57. Rh5 {[%emt 0:00:00]} Rf1+ {[%emt 0:00:00]} 58. Kc2 {[%emt 0:00:00]} d3+ {[%emt 0:00:00]} 59. Kc3 {[%emt 0:00:00]} Rc1+ {[%emt 0:00:00]} 60. Kb4 {[%emt 0:00:00]} d2 {[%emt 0:00:00]} 0-1

[Event "ESTCC 65 2019"]
[Site "Mali Losinj"]
[Date "2019.09.18"]
[Round "1.8"]
[White "Vinke, Dietmar"]
[Black "Fabrin, Morten"]
[Result "1-0"]
[ECO "A04"]
[WhiteElo "2129"]
[BlackElo "1998"]
[Annotator "NA"]
[PlyCount "77"]
[EventDate "2019.09.18"]
[EventType "team-tourn"]
[EventCountry "CRO"]
[SourceTitle "playchess.com"]
[Source "ChessBase"]
[SourceQuality "1"]
[WhiteTeam "Finland"]
[BlackTeam "Denmark"]
[WhiteTeamCountry "FIN"]
[BlackTeamCountry "DEN"]
[TimeControl "40/5400+30:1800+30"]

1. Nf3 {[%emt 0:00:30]} c5 {[%emt 0:00:30]} 2. e4 {[%emt 0:00:00]} e6 {[%emt 0:00:30]} 3. d3 {[%emt 0:00:00]} Nc6 {[%emt 0:00:30]} 4. Nbd2 {[%emt 0:00:30]} g6 {[%emt 0:00:30]} 5. g3 {[%emt 0:00:00]} Bg7 {[%emt 0:01:30]} 6. Bg2 {[%emt 0:00:00]} Nge7 {[%emt 0:00:30]} 7. O-O {[%emt 0:00:00]} d6 {[%emt 0:00:30]} 8. c3 {[%emt 0:03:00]} O-O {[%emt 0:01:30]} 9. Re1 {[%emt 0:05:30]} Rb8 {[%emt 0:01:30]} 10. Nf1 {[%emt 0:10:30]} b6 {[%emt 0:03:30]} 11. d4 {[%emt 0:00:30]} Ba6 {[%emt 0:05:30]} 12. d5 {[%emt 0:12:30]} exd5 {[%emt 0:03:30]} 13. exd5 {[%emt 0:00:30]} Ne5 {[%emt 0:02:30]} 14. Nxe5 {[%emt 0:00:00]} dxe5 {[%emt 0:01:30]} 15. f4 {[%emt 0:00:00]} Bxf1 {[%emt 0:04:30]} 16. Kxf1 {[%emt 0:05:30]} Qd6 {[%emt 0:02:30]} 17. Qe2 {[%emt 0:01:30]} f6 {[%emt 0:04:30]} 18. Kg1 {[%emt 0:02:30]} Rbd8 {[%emt 0:03:30]} 19. fxe5 {[%emt 0:07:30]} fxe5 {[%emt 0:05:30]} 20. Bg5 {[%emt 0:00:30]} Rde8 {[%emt 0:01:30]} 21. Bxe7 {[%emt 0:00:30]} Rxe7 {[%emt 0:02:30]} 22. Qe4 {[%emt 0:08:30]} b5 {[%emt 0:05:30]} 23. Rf1 {[%emt 0:06:30]} Rxf1+ {[%emt 0:01:30]} 24. Rxf1 {[%emt 0:00:00]} Rc7 {[%emt 0:03:30]} 25. Bh3 {[%emt 0:07:00]} a5 {[%emt 0:02:30]} 26. a4 {[%emt 0:08:30]} Rb7 {[%emt 0:03:30]} 27. Be6+ {[%emt 0:02:07]} Kh8 {[%emt 0:00:30]} 28. axb5 {[%emt 0:00:03]} Rxb5 {[%emt 0:00:30]} 29. Qa4 {[%emt 0:00:20]} Rb8 {[%emt 0:01:30]} 30. Qxa5 {[%emt 0:04:07]} Rxb2 {[%emt 0:05:30]} 31. Rf7 {[%emt 0:04:08]} Qb6 {[%emt 0:06:30]} 32. Qa8+ {[%emt 0:01:42]} Qb8 {[%emt 0:00:30]} 33. Qxb8+ {[%emt 0:03:22]} Rxb8 {[%emt 0:00:30]} 34. d6 {[%emt 0:00:22]} e4 {[%emt 0:00:30]} 35. d7 {[%emt 0:01:27]} Bf8 {[%emt 0:01:30]} 36. Kf2 {[%emt 0:01:17]} Bh6 {[%emt 0:03:30]} 37. Re7 {[%emt 0:02:28]} Rb2+ {[%emt 0:00:30]} 38. Kf1 {[%emt 0:00:31]} Bg5 {[%emt 0:02:30]} 39. d8=Q# {[%emt 0:00:16]} 1-0

[Event "ESTCC 65 2019"]
[Site "Mali Losinj"]
[Date "2019.09.18"]
[Round "1.9"]
[White "Werner, Clemens"]
[Black "Kolbak, Jens"]
[Result "1/2-1/2"]
[ECO "C54"]
[WhiteElo "2286"]
[BlackElo "2173"]
[Annotator "NA"]
[PlyCount "59"]
[EventDate "2019.09.18"]
[EventType "team-tourn"]
[EventCountry "CRO"]
[SourceTitle "playchess.com"]
[Source "ChessBase"]
[SourceQuality "1"]
[WhiteTeam "Germany"]
[BlackTeam "Denmark"]
[WhiteTeamCountry "GER"]
[BlackTeamCountry "DEN"]
[TimeControl "40/5400+30:1800+30"]

1. e4 {[%emt 0:00:30]} e5 {[%emt 0:00:30]} 2. Nf3 {[%emt 0:00:00]} Nc6 {[%emt 0:00:00]} 3. Bc4 {[%emt 0:00:00]} Bc5 {[%emt 0:00:00]} 4. c3 {[%emt 0:01:30]} Nf6 {[%emt 0:00:30]} 5. d3 {[%emt 0:00:30]} d6 {[%emt 0:00:30]} 6. Bb3 {[%emt 0:00:30]} h6 {[%emt 0:05:30]} 7. Nbd2 {[%emt 0:04:30]} O-O {[%emt 0:05:30]} 8. Nf1 {[%emt 0:06:30]} d5 {[%emt 0:06:30]} 9. Qe2 {[%emt 0:01:30]} Be6 {[%emt 0:08:30]} 10. Ng3 {[%emt 0:02:30]} dxe4 {[%emt 0:04:30]} 11. dxe4 {[%emt 0:01:30]} Re8 {[%emt 0:07:30]} 12. O-O {[%emt 0:02:30]} a5 {[%emt 0:02:30]} 13. Ba4 {[%emt 0:13:30]} Nd7 {[%emt 0:05:30]} 14. Bxc6 {[%emt 0:07:30]} bxc6 {[%emt 0:00:00]} 15. Be3 {[%emt 0:00:30]} Qe7 {[%emt 0:05:00]} 16. b3 {[%emt 0:04:30]} Bd6 {[%emt 0:05:30]} 17. Nd2 {[%emt 0:06:30]} Nb6 {[%emt 0:02:30]} 18. a4 {[%emt 0:07:30]} Rab8 {[%emt 0:03:30]} 19. Rab1 {[%emt 0:01:30]} Kh7 {[%emt 0:03:30]} 20. Qh5 {[%emt 0:05:30]} f6 {[%emt 0:05:30]} 21. Nf5 {[%emt 0:03:30]} Qf7 {[%emt 0:02:30]} 22. Qxf7 {[%emt 0:09:34]} Bxf7 {[%emt 0:00:00]} 23. Rfd1 {[%emt 0:01:09]} Bf8 {[%emt 0:01:00]} 24. Kf1 {[%emt 0:06:36]} g6 {[%emt 0:02:30]} 25. Bxb6 {[%emt 0:00:10]} cxb6 {[%emt 0:02:30]} 26. Ne3 {[%emt 0:00:24]} Be6 {[%emt 0:01:31]} 27. Ndc4 {[%emt 0:00:43]} Bc5 {[%emt 0:01:11]} 28. Ke2 {[%emt 0:00:54]} Red8 {[%emt 0:01:35]} 29. g3 {[%emt 0:02:56]} Kg7 {[%emt 0:02:10]} 30. f4 {[%emt 0:00:12]} 1/2-1/2

[Event "ESTCC 65 2019"]
[Site "Mali Losinj"]
[Date "2019.09.18"]
[Round "1.10"]
[White "Olesen, Poul Erik Norgaard"]
[Black "Kierzek, Matthias"]
[Result "1/2-1/2"]
[ECO "B10"]
[WhiteElo "1996"]
[BlackElo "2186"]
[Annotator "NA"]
[PlyCount "64"]
[EventDate "2019.09.18"]
[EventType "team-tourn"]
[EventCountry "CRO"]
[SourceTitle "playchess.com"]
[Source "ChessBase"]
[SourceQuality "1"]
[WhiteTeam "Denmark"]
[BlackTeam "Germany"]
[WhiteTeamCountry "DEN"]
[BlackTeamCountry "GER"]
[TimeControl "40/5400+30:1800+30"]

1. e4 {[%emt 0:00:30]} c6 {[%emt 0:00:30]} 2. d3 {[%emt 0:00:00]} d5 {[%emt 0:00:00]} 3. Nd2 {[%emt 0:00:00]} e5 {[%emt 0:00:00]} 4. Ngf3 {[%emt 0:00:30]} Bd6 {[%emt 0:00:30]} 5. d4 {[%emt 0:00:00]} exd4 {[%emt 0:00:00]} 6. exd5 {[%emt 0:00:00]} Nf6 {[%emt 0:00:00]} 7. Nxd4 {[%emt 0:06:30]} Nxd5 {[%emt 0:01:30]} 8. Bd3 {[%emt 0:11:30]} O-O {[%emt 0:27:30]} 9. Ne4 {[%emt 0:12:30]} Nf4 {[%emt 0:21:30]} 10. Nxd6 {[%emt 0:26:30]} Qxd6 {[%emt 0:06:30]} 11. Bxf4 {[%emt 0:06:30]} Qxf4 {[%emt 0:00:30]} 12. O-O {[%emt 0:00:30]} Bg4 {[%emt 0:01:30]} 13. Be2 {[%emt 0:00:30]} Bxe2 {[%emt 0:06:30]} 14. Nxe2 {[%emt 0:00:30]} Qc7 {[%emt 0:02:30]} 15. Nc3 {[%emt 0:01:30]} Na6 {[%emt 0:01:30]} 16. Re1 {[%emt 0:02:30]} Nc5 {[%emt 0:02:30]} 17. Qh5 {[%emt 0:01:30]} Ne6 {[%emt 0:00:30]} 18. Rad1 {[%emt 0:02:30]} Rad8 {[%emt 0:00:30]} 19. Ne4 {[%emt 0:01:30]} Rxd1 {[%emt 0:10:01]} 20. Rxd1 {[%emt 0:01:30]} Rd8 {[%emt 0:00:23]} 21. g3 {[%emt 0:01:30]} Rxd1+ {[%emt 0:04:38]} 22. Qxd1 {[%emt 0:00:30]} Qe5 {[%emt 0:00:20]} 23. Nc3 {[%emt 0:01:30]} Nd4 {[%emt 0:01:15]} 24. Kg2 {[%emt 0:02:45]} f5 {[%emt 0:02:19]} 25. Qd2 {[%emt 0:02:04]} c5 {[%emt 0:01:00]} 26. f3 {[%emt 0:05:32]} h6 {[%emt 0:00:57]} 27. Kf2 {[%emt 0:01:01]} b5 {[%emt 0:02:28]} 28. a3 {[%emt 0:04:21]} a5 {[%emt 0:01:48]} 29. Ne2 {[%emt 0:00:31]} Nxe2 {[%emt 0:01:07]} 30. Qxe2 {[%emt 0:00:11]} Qxe2+ {[%emt 0:03:23]} 31. Kxe2 {[%emt 0:00:03]} Kf7 {[%emt 0:00:11]} 32. Kd3 {[%emt 0:01:23]} Ke6 {[%emt 0:00:05]} 1/2-1/2